[Event "*** Titled Tuesday Blitz"]
[Site "Chess.com"]
[Date "2020.05.26"]
[Round "6"]
[White "ZarinaShafigullina"]
[Black "EvgenyRomanov"]
[Result "0-1"]
[WhiteElo "2339"]
[BlackElo "2645"]
[TimeControl "180+1"]
[EndTime "11:07:30 PDT"]
[Termination "EvgenyRomanov won by resignation"]

1. d4 {[%clk 0:03:00.9]} 1... Nf6 {[%clk 0:02:59.2]} 2. Nf3 {[%clk 0:03:01.8]}
2... e6 {[%clk 0:02:59.6]} 3. g3 {[%clk 0:03:02]} 3... b5 {[%clk 0:02:58.8]} 4.
Bg2 {[%clk 0:03:00.5]} 4... d5 {[%clk 0:02:57.9]} 5. O-O {[%clk 0:02:53.8]} 5...
Be7 {[%clk 0:02:56.3]} 6. Qd3 {[%clk 0:02:53.4]} 6... Ba6 {[%clk 0:02:53.1]} 7.
Bg5 {[%clk 0:02:51.2]} 7... O-O {[%clk 0:02:51]} 8. Re1 {[%clk 0:02:50.4]} 8...
b4 {[%clk 0:02:41.9]} 9. Qd1 {[%clk 0:02:46.6]} 9... c5 {[%clk 0:02:32.1]} 10.
Nbd2 {[%clk 0:02:45.2]} 10... Nbd7 {[%clk 0:02:26.4]} 11. Ne5 {[%clk 0:02:05.6]}
11... Nxe5 {[%clk 0:02:18]} 12. dxe5 {[%clk 0:02:05.4]} 12... Nd7 {[%clk
0:02:18.7]} 13. Bxe7 {[%clk 0:02:05.5]} 13... Qxe7 {[%clk 0:02:19.6]} 14. e4
{[%clk 0:02:05.6]} 14... d4 {[%clk 0:02:18.5]} 15. f4 {[%clk 0:02:01.2]} 15...
Rad8 {[%clk 0:02:11.1]} 16. Nf3 {[%clk 0:01:58.3]} 16... Nb6 {[%clk 0:02:05.6]}
17. b3 {[%clk 0:01:54.8]} 17... c4 {[%clk 0:02:00.5]} 18. Bf1 {[%clk 0:01:51.9]}
18... d3 {[%clk 0:01:59.2]} 19. cxd3 {[%clk 0:01:50.1]} 19... cxd3 {[%clk
0:01:56.8]} 20. Rc1 {[%clk 0:01:48.6]} 20... h6 {[%clk 0:01:31]} 21. Qd2 {[%clk
0:01:47.7]} 21... Bb5 {[%clk 0:01:27.5]} 22. Re3 {[%clk 0:01:42.7]} 22... Rd7
{[%clk 0:01:24.8]} 23. Ne1 {[%clk 0:01:37.2]} 23... f6 {[%clk 0:01:12.5]} 24.
exf6 {[%clk 0:01:34.1]} 24... Qxf6 {[%clk 0:01:12]} 25. Nf3 {[%clk 0:01:19.7]}
25... Rfd8 {[%clk 0:00:58]} 26. Ne5 {[%clk 0:01:18.7]} 26... Rd6 {[%clk
0:00:54.6]} 27. Rc5 {[%clk 0:01:09.9]} 27... a6 {[%clk 0:00:51.2]} 28. Rc7
{[%clk 0:01:00.1]} 28... Nd7 {[%clk 0:00:14.5]} 29. Nxd7 {[%clk 0:00:18.7]}
29... R6xd7 {[%clk 0:00:15.4]} 30. Rxd7 {[%clk 0:00:18.4]} 30... Rxd7 {[%clk
0:00:14.8]} 31. Bxd3 {[%clk 0:00:16.1]} 31... Qd4 {[%clk 0:00:13.9]} 32. Kg2
{[%clk 0:00:13.4]} 32... Bxd3 {[%clk 0:00:13.7]} 33. e5 {[%clk 0:00:13.3]} 33...
Be4+ {[%clk 0:00:13.6]} 0-1

[Event "*** Titled Tuesday Blitz"]
[Site "Chess.com"]
[Date "2020.05.26"]
[Round "6"]
[White "AlanZhang"]
[Black "Xtrmntr78"]
[Result "0-1"]
[WhiteElo "2241"]
[BlackElo "2439"]
[TimeControl "180+1"]
[EndTime "11:07:30 PDT"]
[Termination "Xtrmntr78 won on time"]

1. e4 {[%clk 0:03:00.9]} 1... e5 {[%clk 0:02:59.9]} 2. Nf3 {[%clk 0:03:01.5]}
2... d5 {[%clk 0:02:59.6]} 3. Nxe5 {[%clk 0:02:59.9]} 3... Bd6 {[%clk
0:02:59.7]} 4. d4 {[%clk 0:02:58.8]} 4... dxe4 {[%clk 0:03:00.1]} 5. Nc4 {[%clk
0:02:57.2]} 5... Be7 {[%clk 0:03:00]} 6. Nc3 {[%clk 0:02:57.7]} 6... Nf6 {[%clk
0:03:00.5]} 7. Be2 {[%clk 0:02:48.1]} 7... Nc6 {[%clk 0:03:00.6]} 8. Be3 {[%clk
0:02:42.9]} 8... Nb4 {[%clk 0:03:00.1]} 9. Ne5 {[%clk 0:02:40.1]} 9... Nbd5
{[%clk 0:02:59.2]} 10. O-O {[%clk 0:02:37.9]} 10... O-O {[%clk 0:02:47.8]} 11.
Qd2 {[%clk 0:02:22.1]} 11... c6 {[%clk 0:02:36.5]} 12. Nxd5 {[%clk 0:02:04]}
12... Nxd5 {[%clk 0:02:34.5]} 13. c4 {[%clk 0:02:02.8]} 13... Nxe3 {[%clk
0:02:33.7]} 14. fxe3 {[%clk 0:02:03.7]} 14... f6 {[%clk 0:02:30.4]} 15. Ng4
{[%clk 0:02:02.9]} 15... Be6 {[%clk 0:02:26.9]} 16. Nf2 {[%clk 0:01:57.6]} 16...
f5 {[%clk 0:02:25.6]} 17. Nh3 {[%clk 0:01:54.5]} 17... g5 {[%clk 0:02:20.2]} 18.
Rad1 {[%clk 0:01:43]} 18... Qd6 {[%clk 0:02:19.1]} 19. d5 {[%clk 0:01:25.4]}
19... cxd5 {[%clk 0:02:17.9]} 20. cxd5 {[%clk 0:01:26.3]} 20... Bd7 {[%clk
0:02:17.6]} 21. Nf2 {[%clk 0:01:05.3]} 21... g4 {[%clk 0:02:05.9]} 22. g3 {[%clk
0:00:57.8]} 22... h5 {[%clk 0:02:01]} 23. Rc1 {[%clk 0:00:53.6]} 23... Bf6
{[%clk 0:01:53.5]} 24. Nd1 {[%clk 0:00:49.7]} 24... h4 {[%clk 0:01:48.3]} 25.
Kg2 {[%clk 0:00:46.2]} 25... Kg7 {[%clk 0:01:43.5]} 26. Nc3 {[%clk 0:00:41.3]}
26... Rh8 {[%clk 0:01:33.5]} 27. Bc4 {[%clk 0:00:29.8]} 27... hxg3 {[%clk
0:01:28.4]} 28. hxg3 {[%clk 0:00:30.7]} 28... Rh3 {[%clk 0:01:23.4]} 29. Ne2
{[%clk 0:00:31.2]} 29... Rah8 {[%clk 0:01:21.1]} 30. Rh1 {[%clk 0:00:31.1]}
30... Be5 {[%clk 0:01:18]} 31. Nf4 {[%clk 0:00:27.2]} 31... Bxf4 {[%clk
0:01:11.1]} 32. exf4 {[%clk 0:00:21.4]} 32... Qh6 {[%clk 0:00:53.2]} 33. Qd4+
{[%clk 0:00:19]} 33... Kg6 {[%clk 0:00:52.7]} 34. Qg1 {[%clk 0:00:10.5]} 34...
Qg7 {[%clk 0:00:32.4]} 35. Rxh3 {[%clk 0:00:03.6]} 35... Qxb2+ {[%clk
0:00:31.2]} 36. Qf2 {[%clk 0:00:02]} 36... gxh3+ {[%clk 0:00:29.8]} 0-1

[Event "*** Titled Tuesday Blitz"]
[Site "Chess.com"]
[Date "2020.05.26"]
[Round "6"]
[White "louis198"]
[Black "KuzubovYuriy"]
[Result "0-1"]
[WhiteElo "2499"]
[BlackElo "2762"]
[TimeControl "180+1"]
[EndTime "11:07:33 PDT"]
[Termination "KuzubovYuriy won by resignation"]

1. d4 {[%clk 0:03:00.9]} 1... g6 {[%clk 0:03:00.9]} 2. Bf4 {[%clk 0:03:00.3]}
2... Bg7 {[%clk 0:03:01.8]} 3. e3 {[%clk 0:02:59]} 3... c5 {[%clk 0:03:01.2]} 4.
Nc3 {[%clk 0:02:51]} 4... cxd4 {[%clk 0:03:00.8]} 5. exd4 {[%clk 0:02:50]} 5...
Nf6 {[%clk 0:03:00.1]} 6. h3 {[%clk 0:02:48.5]} 6... O-O {[%clk 0:03:00]} 7. Nf3
{[%clk 0:02:48.7]} 7... d6 {[%clk 0:03:00.3]} 8. Bc4 {[%clk 0:02:48.7]} 8... a6
{[%clk 0:03:00]} 9. a4 {[%clk 0:02:48.3]} 9... b6 {[%clk 0:02:52.6]} 10. O-O
{[%clk 0:02:46.8]} 10... Bb7 {[%clk 0:02:53.1]} 11. Re1 {[%clk 0:02:46.5]} 11...
Nbd7 {[%clk 0:02:52.1]} 12. Qe2 {[%clk 0:02:43.8]} 12... d5 {[%clk 0:02:38.4]}
13. Bd3 {[%clk 0:02:08.9]} 13... e6 {[%clk 0:02:38.2]} 14. Qd2 {[%clk
0:01:57.8]} 14... Bc6 {[%clk 0:02:30.3]} 15. b4 {[%clk 0:01:37.4]} 15... Bb7
{[%clk 0:02:28.1]} 16. Bg5 {[%clk 0:01:24]} 16... Qc7 {[%clk 0:02:26.1]} 17. Bf4
{[%clk 0:01:03.4]} 17... Qc8 {[%clk 0:02:25.7]} 18. Bd6 {[%clk 0:01:02.8]} 18...
Rd8 {[%clk 0:02:23.2]} 19. b5 {[%clk 0:00:58.8]} 19... a5 {[%clk 0:02:21.4]} 20.
h4 {[%clk 0:00:45.6]} 20... Bf8 {[%clk 0:02:18.1]} 21. Bxf8 {[%clk 0:00:45]}
21... Nxf8 {[%clk 0:02:19]} 22. Ne5 {[%clk 0:00:42.5]} 22... N6d7 {[%clk
0:02:15.7]} 23. Ng4 {[%clk 0:00:38.4]} 23... Qc7 {[%clk 0:02:10.1]} 24. Ne2
{[%clk 0:00:32.5]} 24... h5 {[%clk 0:02:01]} 25. Ne3 {[%clk 0:00:30.9]} 25...
Nf6 {[%clk 0:01:56.4]} 26. Ng3 {[%clk 0:00:29]} 26... Rac8 {[%clk 0:01:53.9]}
27. Nef1 {[%clk 0:00:19]} 27... Kg7 {[%clk 0:01:52.4]} 28. Nh2 {[%clk
0:00:19.3]} 28... Qc3 {[%clk 0:01:48]} 29. Qg5 {[%clk 0:00:18.8]} 29... Qxd4
{[%clk 0:01:44.8]} 30. Nf3 {[%clk 0:00:18.5]} 30... Qg4 {[%clk 0:01:43.3]} 31.
Qe5 {[%clk 0:00:18.6]} 31... Nd7 {[%clk 0:01:38.7]} 32. Qb2 {[%clk 0:00:15.5]}
32... d4 {[%clk 0:01:34.5]} 33. Nxd4 {[%clk 0:00:12.6]} 33... Qxh4 {[%clk
0:01:32]} 34. Nxe6+ {[%clk 0:00:09.5]} 34... fxe6 {[%clk 0:01:30.8]} 35. Rxe6
{[%clk 0:00:10.4]} 35... Re8 {[%clk 0:01:12.1]} 36. Rae1 {[%clk 0:00:10.4]}
36... Rxe6 {[%clk 0:01:09.3]} 37. Rxe6 {[%clk 0:00:10.4]} 37... Qb4 {[%clk
0:01:07.9]} 38. Qa1 {[%clk 0:00:06.8]} 38... Kf7 {[%clk 0:01:03.7]} 39. Re3
{[%clk 0:00:03.8]} 39... h4 {[%clk 0:01:01.4]} 40. Ne2 {[%clk 0:00:03.9]} 40...
Qg4 {[%clk 0:00:51.6]} 41. f3 {[%clk 0:00:03.4]} 41... Qb4 {[%clk 0:00:51.5]}
42. Kf2 {[%clk 0:00:02.1]} 42... Rf8 {[%clk 0:00:48.1]} 43. Qa2+ {[%clk
0:00:02.3]} 43... Kg7 {[%clk 0:00:47.6]} 44. c4 {[%clk 0:00:02.6]} 44... Ng4+
{[%clk 0:00:46.4]} 0-1

[Event "*** Titled Tuesday Blitz"]
[Site "Chess.com"]
[Date "2020.05.26"]
[Round "6"]
[White "aisha_zakirova"]
[Black "TST2014"]
[Result "0-1"]
[WhiteElo "1939"]
[BlackElo "2521"]
[TimeControl "180+1"]
[EndTime "11:07:34 PDT"]
[Termination "TST2014 won by checkmate"]

1. d4 {[%clk 0:03:00.9]} 1... Nf6 {[%clk 0:02:59.5]} 2. c4 {[%clk 0:03:00.5]}
2... e6 {[%clk 0:02:56.4]} 3. Nf3 {[%clk 0:02:59.5]} 3... d5 {[%clk 0:02:54.8]}
4. Nc3 {[%clk 0:02:55.9]} 4... Nbd7 {[%clk 0:02:48.8]} 5. Bg5 {[%clk 0:02:52.6]}
5... h6 {[%clk 0:02:46.7]} 6. Bh4 {[%clk 0:02:46.5]} 6... Bb4 {[%clk 0:02:44.2]}
7. cxd5 {[%clk 0:02:43.4]} 7... exd5 {[%clk 0:02:43.6]} 8. a3 {[%clk 0:02:40.2]}
8... Bxc3+ {[%clk 0:02:36.4]} 9. bxc3 {[%clk 0:02:36.2]} 9... c5 {[%clk
0:02:31.6]} 10. e3 {[%clk 0:02:33.7]} 10... Qa5 {[%clk 0:02:31.1]} 11. Qd3
{[%clk 0:02:00.7]} 11... c4 {[%clk 0:02:26.4]} 12. Qc2 {[%clk 0:01:56.2]} 12...
Ne4 {[%clk 0:02:23.2]} 13. Bxc4 {[%clk 0:01:46.4]} 13... Nxc3 {[%clk 0:02:11.9]}
14. Qd2 {[%clk 0:01:42.9]} 14... dxc4 {[%clk 0:02:06.1]} 15. Rc1 {[%clk
0:01:41.9]} 15... Qxa3 {[%clk 0:01:49.9]} 16. Rxc3 {[%clk 0:01:40.6]} 16... Qa1+
{[%clk 0:01:46.8]} 17. Rc1 {[%clk 0:01:39.3]} 17... Qa4 {[%clk 0:01:34.8]} 18.
O-O {[%clk 0:01:38.2]} 18... O-O {[%clk 0:01:33.1]} 19. e4 {[%clk 0:01:30]}
19... Qc6 {[%clk 0:01:15.9]} 20. d5 {[%clk 0:01:25.7]} 20... Qg6 {[%clk
0:01:15.6]} 21. Rxc4 {[%clk 0:01:17]} 21... Nb6 {[%clk 0:01:15.3]} 22. Rb4
{[%clk 0:01:14]} 22... Bh3 {[%clk 0:01:10.7]} 23. Bg3 {[%clk 0:01:08.6]} 23...
Bc8 {[%clk 0:00:44.9]} 24. e5 {[%clk 0:01:04.9]} 24... Rd8 {[%clk 0:00:41.7]}
25. d6 {[%clk 0:01:03.6]} 25... Bd7 {[%clk 0:00:35.4]} 26. Nh4 {[%clk
0:00:41.9]} 26... Qe6 {[%clk 0:00:30.3]} 27. f4 {[%clk 0:00:41.3]} 27... Bc6
{[%clk 0:00:30.2]} 28. f5 {[%clk 0:00:36.6]} 28... Qd5 {[%clk 0:00:30.4]} 29.
Qf2 {[%clk 0:00:33.7]} 29... Nc4 {[%clk 0:00:21.8]} 30. f6 {[%clk 0:00:32.7]}
30... g6 {[%clk 0:00:19.6]} 31. Qf4 {[%clk 0:00:27.4]} 31... g5 {[%clk
0:00:18.9]} 32. Qf5 {[%clk 0:00:23.6]} 32... Ne3 {[%clk 0:00:17.4]} 33. Qf2
{[%clk 0:00:18.5]} 33... Nxf1 {[%clk 0:00:17.4]} 34. Qxf1 {[%clk 0:00:18.4]}
34... gxh4 {[%clk 0:00:17.5]} 35. Rg4+ {[%clk 0:00:17.3]} 35... Kh8 {[%clk
0:00:16.5]} 36. Qc1 {[%clk 0:00:17.2]} 36... Qxg2# {[%clk 0:00:15.9]} 0-1

[Event "*** Titled Tuesday Blitz"]
[Site "Chess.com"]
[Date "2020.05.26"]
[Round "6"]
[White "jonaszmb"]
[Black "Roaccutane"]
[Result "0-1"]
[WhiteElo "2478"]
[BlackElo "2716"]
[TimeControl "180+1"]
[EndTime "11:07:35 PDT"]
[Termination "Roaccutane won by checkmate"]

1. d4 {[%clk 0:03:00.9]} 1... Nf6 {[%clk 0:02:56.3]} 2. c4 {[%clk 0:03:01.1]}
2... c5 {[%clk 0:02:51.8]} 3. d5 {[%clk 0:03:00.8]} 3... b5 {[%clk 0:02:52.1]}
4. cxb5 {[%clk 0:03:00.9]} 4... a6 {[%clk 0:02:52.1]} 5. Nc3 {[%clk 0:03:01.5]}
5... e6 {[%clk 0:02:49.8]} 6. e4 {[%clk 0:03:00.5]} 6... Bb7 {[%clk 0:02:46.9]}
7. bxa6 {[%clk 0:02:58.7]} 7... Nxa6 {[%clk 0:02:45.2]} 8. Nf3 {[%clk
0:02:21.7]} 8... Nb4 {[%clk 0:02:08.4]} 9. Bg5 {[%clk 0:02:10.8]} 9... h6 {[%clk
0:02:04]} 10. Bxf6 {[%clk 0:02:01.6]} 10... Qxf6 {[%clk 0:02:04.6]} 11. e5
{[%clk 0:02:01.1]} 11... Qf4 {[%clk 0:02:02]} 12. dxe6 {[%clk 0:01:35.9]} 12...
fxe6 {[%clk 0:01:57.1]} 13. Bb5 {[%clk 0:01:35.3]} 13... Rd8 {[%clk 0:01:44.8]}
14. a3 {[%clk 0:01:11.3]} 14... Nd5 {[%clk 0:01:32.7]} 15. Nxd5 {[%clk
0:01:01.7]} 15... Bxd5 {[%clk 0:01:33.6]} 16. Bd3 {[%clk 0:00:50.9]} 16... Rb8
{[%clk 0:01:25]} 17. Bg6+ {[%clk 0:00:49.3]} 17... Kd8 {[%clk 0:01:25.1]} 18.
O-O {[%clk 0:00:16.7]} 18... Be7 {[%clk 0:01:18.7]} 19. a4 {[%clk 0:00:11.8]}
19... Rf8 {[%clk 0:01:17]} 20. Ne1 {[%clk 0:00:11.8]} 20... Qxe5 {[%clk
0:01:12.4]} 21. a5 {[%clk 0:00:10.9]} 21... Bd6 {[%clk 0:00:54]} 22. g3 {[%clk
0:00:06.1]} 22... Ke7 {[%clk 0:00:31.9]} 23. Bc2 {[%clk 0:00:05.9]} 23... c4
{[%clk 0:00:29.9]} 24. a6 {[%clk 0:00:06.1]} 24... Rxb2 {[%clk 0:00:28.3]} 25.
a7 {[%clk 0:00:05.7]} 25... h5 {[%clk 0:00:25.1]} 26. Rb1 {[%clk 0:00:05.5]}
26... Ra2 {[%clk 0:00:21.3]} 27. Ra1 {[%clk 0:00:01.6]} 27... Rxa1 {[%clk
0:00:21.1]} 28. Qd2 {[%clk 0:00:02.2]} 28... Rxa7 {[%clk 0:00:19.6]} 29. f4
{[%clk 0:00:02.7]} 29... Bc5+ {[%clk 0:00:18.5]} 30. Rf2 {[%clk 0:00:01.8]}
30... Bxf2+ {[%clk 0:00:18.6]} 31. Qxf2 {[%clk 0:00:02.7]} 31... Qf6 {[%clk
0:00:18.8]} 32. Qxa7 {[%clk 0:00:02.3]} 32... Qc3 {[%clk 0:00:17.1]} 33. Ba4
{[%clk 0:00:02.2]} 33... Qxe1# {[%clk 0:00:16.5]} 0-1

[Event "*** Titled Tuesday Blitz"]
[Site "Chess.com"]
[Date "2020.05.26"]
[Round "6"]
[White "Abund"]
[Black "WastefulJustice"]
[Result "1-0"]
[WhiteElo "2607"]
[BlackElo "2393"]
[TimeControl "180+1"]
[EndTime "11:07:35 PDT"]
[Termination "Abund won by checkmate"]

1. d4 {[%clk 0:03:00.9]} 1... Nf6 {[%clk 0:02:59.8]} 2. c4 {[%clk 0:02:59.8]}
2... c5 {[%clk 0:03:00.3]} 3. d5 {[%clk 0:02:59.7]} 3... e6 {[%clk 0:03:00.9]}
4. Nc3 {[%clk 0:03:00]} 4... exd5 {[%clk 0:03:01.6]} 5. cxd5 {[%clk 0:03:00.3]}
5... d6 {[%clk 0:03:02.3]} 6. Nf3 {[%clk 0:03:00.8]} 6... g6 {[%clk 0:03:02.8]}
7. Nd2 {[%clk 0:03:01.3]} 7... Bg7 {[%clk 0:03:03.2]} 8. e4 {[%clk 0:03:01.9]}
8... O-O {[%clk 0:03:03.2]} 9. Be2 {[%clk 0:03:02.4]} 9... Re8 {[%clk 0:03:03]}
10. O-O {[%clk 0:03:02.4]} 10... Nbd7 {[%clk 0:03:02.4]} 11. h3 {[%clk
0:02:45.6]} 11... a6 {[%clk 0:02:57.8]} 12. a4 {[%clk 0:02:45.4]} 12... b6
{[%clk 0:02:54.7]} 13. Qc2 {[%clk 0:02:38.7]} 13... Ra7 {[%clk 0:02:54.1]} 14.
Ra3 {[%clk 0:02:35.4]} 14... h6 {[%clk 0:02:38.9]} 15. Re1 {[%clk 0:02:17.2]}
15... g5 {[%clk 0:02:37.4]} 16. Nc4 {[%clk 0:02:14.8]} 16... Ne5 {[%clk
0:02:36]} 17. Nxe5 {[%clk 0:02:09.2]} 17... Rxe5 {[%clk 0:02:36.9]} 18. Rb3
{[%clk 0:02:01.5]} 18... Rae7 {[%clk 0:02:34.8]} 19. f4 {[%clk 0:01:56.6]} 19...
gxf4 {[%clk 0:01:42.9]} 20. Bxf4 {[%clk 0:01:55.2]} 20... Rxe4 {[%clk
0:01:42.6]} 21. Nxe4 {[%clk 0:01:53.8]} 21... Rxe4 {[%clk 0:01:43.5]} 22. Qd2
{[%clk 0:01:14.9]} 22... Nxd5 {[%clk 0:01:36]} 23. Bxh6 {[%clk 0:01:03.1]} 23...
Bd4+ {[%clk 0:01:17.5]} 24. Kh1 {[%clk 0:01:00.7]} 24... Qh4 {[%clk 0:01:17]}
25. Bg5 {[%clk 0:00:47.3]} 25... Qf2 {[%clk 0:01:10.1]} 26. Rf3 {[%clk 0:00:46]}
26... Rxe2 {[%clk 0:00:43.3]} 27. Qxe2 {[%clk 0:00:40.7]} 27... Qxe2 {[%clk
0:00:42.5]} 28. Rxe2 {[%clk 0:00:41.6]} 28... Be6 {[%clk 0:00:37.6]} 29. Bh4
{[%clk 0:00:32.6]} 29... b5 {[%clk 0:00:35.9]} 30. axb5 {[%clk 0:00:31.5]} 30...
axb5 {[%clk 0:00:36.8]} 31. Bg3 {[%clk 0:00:32]} 31... Nb6 {[%clk 0:00:26.4]}
32. Bxd6 {[%clk 0:00:31.8]} 32... Nc4 {[%clk 0:00:26.7]} 33. Be7 {[%clk
0:00:30]} 33... Nxb2 {[%clk 0:00:25.4]} 34. Rg3+ {[%clk 0:00:21.3]} 34... Kh8
{[%clk 0:00:14.2]} 35. Re4 {[%clk 0:00:21.3]} 35... Bf5 {[%clk 0:00:13.2]} 36.
Rh4+ {[%clk 0:00:21.4]} 36... Bh7 {[%clk 0:00:13.2]} 37. Rxd4 {[%clk 0:00:22.1]}
37... cxd4 {[%clk 0:00:12.4]} 38. Bf6# {[%clk 0:00:22.5]} 1-0

[Event "*** Titled Tuesday Blitz"]
[Site "Chess.com"]
[Date "2020.05.26"]
[Round "6"]
[White "Srisshhhtea"]
[Black "amiralfio"]
[Result "0-1"]
[WhiteElo "2174"]
[BlackElo "2409"]
[TimeControl "180+1"]
[EndTime "11:07:35 PDT"]
[Termination "amiralfio won on time"]

1. d4 {[%clk 0:03:00.9]} 1... Nf6 {[%clk 0:01:51.2]} 2. c4 {[%clk 0:02:58.9]}
2... g6 {[%clk 0:01:52.1]} 3. Nc3 {[%clk 0:02:58.1]} 3... d5 {[%clk 0:01:53]} 4.
Nf3 {[%clk 0:02:57.1]} 4... Bg7 {[%clk 0:01:52.9]} 5. Bf4 {[%clk 0:02:56.3]}
5... O-O {[%clk 0:01:52.4]} 6. e3 {[%clk 0:02:56.7]} 6... c5 {[%clk 0:01:53]} 7.
dxc5 {[%clk 0:02:56.6]} 7... Qa5 {[%clk 0:01:52.5]} 8. Rc1 {[%clk 0:02:55.9]}
8... Ne4 {[%clk 0:01:52.3]} 9. Be5 {[%clk 0:02:52.6]} 9... Bxe5 {[%clk
0:01:51.5]} 10. Nxe5 {[%clk 0:02:53.5]} 10... Qxc5 {[%clk 0:01:51.3]} 11. cxd5
{[%clk 0:02:47.4]} 11... Nxc3 {[%clk 0:01:51.2]} 12. Rxc3 {[%clk 0:02:45.7]}
12... Qa5 {[%clk 0:01:52.1]} 13. a3 {[%clk 0:02:41.9]} 13... Bf5 {[%clk
0:01:52.2]} 14. Bd3 {[%clk 0:02:39.2]} 14... Qxd5 {[%clk 0:01:51.2]} 15. Bxf5
{[%clk 0:02:38]} 15... Qxg2 {[%clk 0:01:51.6]} 16. Ke2 {[%clk 0:02:29]} 16...
Na6 {[%clk 0:01:49.7]} 17. Bg4 {[%clk 0:02:22.6]} 17... Rad8 {[%clk 0:01:49.8]}
18. Bf3 {[%clk 0:02:15.8]} 18... Qg5 {[%clk 0:01:48.6]} 19. Nd3 {[%clk
0:02:12.2]} 19... Qb5 {[%clk 0:01:49]} 20. Qb3 {[%clk 0:02:08.8]} 20... Qf5
{[%clk 0:01:48.1]} 21. Qxb7 {[%clk 0:02:04.4]} 21... Rxd3 {[%clk 0:01:47.5]} 22.
Be4 {[%clk 0:01:39]} 22... Rd2+ {[%clk 0:01:47.8]} 23. Kxd2 {[%clk 0:01:38.1]}
23... Qxf2+ {[%clk 0:01:48.7]} 24. Kc1 {[%clk 0:01:37]} 24... Nc5 {[%clk
0:01:47.8]} 25. Bc2 {[%clk 0:01:28.7]} 25... Nxb7 {[%clk 0:01:46.8]} 26. e4
{[%clk 0:01:22.6]} 26... Nd6 {[%clk 0:01:45.6]} 27. e5 {[%clk 0:01:17.7]} 27...
Rd8 {[%clk 0:01:46.2]} 28. exd6 {[%clk 0:01:17]} 28... Qf4+ {[%clk 0:01:45.8]}
29. Kb1 {[%clk 0:01:15.9]} 29... Rxd6 {[%clk 0:01:46.6]} 30. Re1 {[%clk
0:01:11.2]} 30... Kg7 {[%clk 0:01:47]} 31. Rxe7 {[%clk 0:01:09]} 31... Qxh2
{[%clk 0:01:46.7]} 32. Rcc7 {[%clk 0:01:04.5]} 32... Rf6 {[%clk 0:01:45.9]} 33.
Bb3 {[%clk 0:01:02.7]} 33... Qg1+ {[%clk 0:01:45]} 34. Ka2 {[%clk 0:01:00]}
34... Qf2 {[%clk 0:01:45.9]} 35. Rxa7 {[%clk 0:00:54.3]} 35... h5 {[%clk
0:01:45.7]} 36. a4 {[%clk 0:00:49.4]} 36... h4 {[%clk 0:01:45.4]} 37. a5 {[%clk
0:00:46.8]} 37... h3 {[%clk 0:01:45.7]} 38. Bd5 {[%clk 0:00:46.1]} 38... h2
{[%clk 0:01:43.2]} 39. a6 {[%clk 0:00:45.2]} 39... Rf3 {[%clk 0:01:42.3]} 40.
Bxf3 {[%clk 0:00:35]} 40... Qxf3 {[%clk 0:01:43.2]} 41. Re1 {[%clk 0:00:30.9]}
41... h1=Q {[%clk 0:01:42]} 42. Rxh1 {[%clk 0:00:30.4]} 42... Qxh1 {[%clk
0:01:42.9]} 43. Rb7 {[%clk 0:00:17.8]} 43... Qd5+ {[%clk 0:01:42.5]} 44. Rb3
{[%clk 0:00:17.4]} 44... Qd7 {[%clk 0:01:33.7]} 45. Ra3 {[%clk 0:00:15.4]} 45...
Qa7 {[%clk 0:01:34]} 46. b4 {[%clk 0:00:14.9]} 46... g5 {[%clk 0:01:34.3]} 47.
b5 {[%clk 0:00:15.1]} 47... g4 {[%clk 0:01:35.2]} 48. Kb2 {[%clk 0:00:12.9]}
48... f5 {[%clk 0:01:34.1]} 49. Rc3 {[%clk 0:00:12]} 49... f4 {[%clk 0:01:32.4]}
50. Kb3 {[%clk 0:00:12.1]} 50... g3 {[%clk 0:01:32.1]} 51. Rc4 {[%clk 0:00:13]}
51... g2 {[%clk 0:01:31.3]} 52. Rc6 {[%clk 0:00:09.5]} 52... g1=Q {[%clk
0:01:30.6]} 53. b6 {[%clk 0:00:10.4]} 53... Qgxb6+ {[%clk 0:01:30.4]} 54. Rxb6
{[%clk 0:00:11.3]} 54... Qxb6+ {[%clk 0:01:31.3]} 55. Kc4 {[%clk 0:00:10.3]}
55... Qxa6+ {[%clk 0:01:32.2]} 56. Kc5 {[%clk 0:00:10.3]} 56... Qf6 {[%clk
0:01:33.1]} 0-1

[Event "*** Titled Tuesday Blitz"]
[Site "Chess.com"]
[Date "2020.05.26"]
[Round "6"]
[White "andy_rekt"]
[Black "ChristianAlm"]
[Result "0-1"]
[WhiteElo "2164"]
[BlackElo "2396"]
[TimeControl "180+1"]
[EndTime "11:07:36 PDT"]
[Termination "ChristianAlm won on time"]

1. d4 {[%clk 0:03:00.9]} 1... Nf6 {[%clk 0:02:58.6]} 2. c4 {[%clk 0:03:00.8]}
2... e6 {[%clk 0:02:58.2]} 3. Nc3 {[%clk 0:03:01.2]} 3... d5 {[%clk 0:02:58.6]}
4. Nf3 {[%clk 0:03:00.1]} 4... Be7 {[%clk 0:02:58.7]} 5. Bf4 {[%clk 0:03:00]}
5... O-O {[%clk 0:02:59.3]} 6. e3 {[%clk 0:03:00.4]} 6... Nbd7 {[%clk
0:02:57.1]} 7. c5 {[%clk 0:02:59.9]} 7... c6 {[%clk 0:02:56.4]} 8. h3 {[%clk
0:02:59.9]} 8... b6 {[%clk 0:02:56]} 9. b4 {[%clk 0:02:54.5]} 9... a5 {[%clk
0:02:56.1]} 10. a3 {[%clk 0:02:54.5]} 10... Ne4 {[%clk 0:02:32.1]} 11. Nxe4
{[%clk 0:02:47.4]} 11... dxe4 {[%clk 0:02:33]} 12. Nd2 {[%clk 0:02:47.9]} 12...
Nf6 {[%clk 0:02:32.7]} 13. b5 {[%clk 0:02:23.4]} 13... bxc5 {[%clk 0:02:25.9]}
14. bxc6 {[%clk 0:02:19.8]} 14... cxd4 {[%clk 0:02:25.5]} 15. exd4 {[%clk
0:02:16.8]} 15... Qxd4 {[%clk 0:02:19.5]} 16. Bb5 {[%clk 0:02:06.3]} 16... Nd5
{[%clk 0:02:17.4]} 17. Bg3 {[%clk 0:00:47.2]} 17... e3 {[%clk 0:02:10.3]} 18.
Nf3 {[%clk 0:00:39]} 18... exf2+ {[%clk 0:01:44]} 19. Bxf2 {[%clk 0:00:36.8]}
19... Qxd1+ {[%clk 0:01:38.6]} 20. Rxd1 {[%clk 0:00:30.6]} 20... Nc3 {[%clk
0:01:38.5]} 21. a4 {[%clk 0:00:17.6]} 21... Nxd1 {[%clk 0:01:37.3]} 22. Kxd1
{[%clk 0:00:18.5]} 22... Bb4 {[%clk 0:01:27.6]} 23. Ke2 {[%clk 0:00:18.5]} 23...
Bd6 {[%clk 0:01:19.3]} 24. Rc1 {[%clk 0:00:18.8]} 24... Bc7 {[%clk 0:01:19.1]}
25. Bc5 {[%clk 0:00:17]} 25... Rd8 {[%clk 0:01:17.9]} 26. Be7 {[%clk 0:00:16.6]}
26... Rd5 {[%clk 0:01:17.2]} 27. Bc4 {[%clk 0:00:15.3]} 27... Rf5 {[%clk
0:01:10.8]} 28. Nd4 {[%clk 0:00:14.8]} 28... Re5+ {[%clk 0:00:58.1]} 29. Kd3
{[%clk 0:00:13.8]} 29... Bb6 {[%clk 0:00:56.1]} 30. Nb5 {[%clk 0:00:12.8]} 30...
Re3+ {[%clk 0:00:55.4]} 31. Kd2 {[%clk 0:00:12.7]} 31... Rg3 {[%clk 0:00:49.2]}
32. Kc2 {[%clk 0:00:08.2]} 32... Rxg2+ {[%clk 0:00:43.6]} 33. Kb1 {[%clk
0:00:07.7]} 33... e5 {[%clk 0:00:43]} 34. Rf1 {[%clk 0:00:06.7]} 34... Be6
{[%clk 0:00:39.7]} 35. Bxe6 {[%clk 0:00:05.3]} 35... fxe6 {[%clk 0:00:40.1]} 36.
Re1 {[%clk 0:00:04.6]} 36... Kf7 {[%clk 0:00:37.1]} 37. Ba3 {[%clk 0:00:03.7]}
37... Bd4 {[%clk 0:00:34.1]} 38. Nd6+ {[%clk 0:00:01.1]} 38... Ke7 {[%clk
0:00:31.6]} 0-1